fUSD/lending_fUSD_20250502
["ID","MTS","AMOUNT","RATE_DAILY","PERIOD"]
[359636150,1746203432375,-1293.8248184,0.000196,2]
[359636151,1746203432387,-780.09523378,0.000196,2]
[359636152,1746203432407,-794.91989946,0.000196,2]
[359636153,1746203432417,-200.0,0.00019625,2]
[359636154,1746203432426,-1296.20654736,0.00019661,2]
[359636155,1746203432436,-3888.08437128,0.00019661,2]
[359636156,1746203432446,-624.77743864,0.00019661,2]
[359636157,1746203432456,-182.9157527,0.00019661,2]
[359636158,1746203432465,-9431.8508,0.00019662,2]
[359636159,1746203432475,-1296.20654735,0.00019688,2]
[359636160,1746203432486,-3888.08437123,0.00019688,2]
[359636161,1746203432497,-200.0,0.00019707,2]
[359636162,1746203432506,-1296.20654735,0.00019714,2]
[359636163,1746203432516,-3888.08437123,0.00019714,2]
[359636164,1746203432527,-1000.0,0.0001973,2]
[359636165,1746203432537,-3942.82431683,0.00019731,2]
[359636166,1746203432547,-1296.20654735,0.00019741,2]
[359636167,1746203432557,-3888.08437123,0.00019741,2]
[359636168,1746203432567,-3144.62479031,0.0001975,2]
[359636170,1746203432576,-500.0,0.0001976,2]
[359636173,1746203432586,-239.60425124,0.0001976,2]
[359636175,1746203432598,-500.0,0.0001976,2]
[359636176,1746203432630,-500.0,0.0001976,2]
[359636179,1746203432640,-500.0,0.0001976,2]
[359636180,1746203432650,-520.37502645,0.0001976,2]
[359636182,1746203432659,-450.0,0.0001976,2]
[359636184,1746203432668,-512.52,0.0001976,2]
[359636186,1746203432677,-457.8,0.0001976,2]
[359636188,1746203432686,-450.0,0.0001976,2]
[359636190,1746203432696,-450.0,0.0001976,2]
[359636192,1746203432707,-450.0,0.0001976,2]
[359636194,1746203432717,-659.22,0.0001976,2]
[359636196,1746203432728,-450.0,0.0001976,2]
[359636199,1746203432738,-626.87,0.0001976,2]
[359636201,1746203432748,-450.0,0.0001976,2]
[359636203,1746203432757,-582.63324717,0.0001976,2]
[359636205,1746203432766,-776.58,0.0001976,2]
[359636207,1746203432776,-450.0,0.0001976,2]
[359636209,1746203432785,-450.0,0.0001976,2]
[359636211,1746203432795,-6924.48,0.0001976,2]
[359636213,1746203432805,-450.0,0.0001976,2]
[359636215,1746203432815,-450.0,0.0001976,2]
[359636217,1746203432824,-450.0,0.0001976,2]
[359636219,1746203432833,-611.33,0.0001976,2]
[359636221,1746203432843,-645.57,0.0001976,2]
[359636223,1746203432853,-726.55,0.0001976,2]
[359636226,1746203432863,-1404.11,0.0001976,2]
[359636228,1746203432873,-450.0,0.0001976,2]
[359636230,1746203432883,-450.0,0.0001976,2]
[359636232,1746203432894,-450.0,0.0001976,2]
[359636234,1746203432904,-450.0,0.0001976,2]
[359636236,1746203432914,-450.0,0.0001976,2]
[359636238,1746203432924,-607.292352,0.0001976,2]
[359636240,1746203432933,-450.0,0.0001976,2]
[359636242,1746203432944,-450.0,0.0001976,2]
[359636244,1746203432953,-450.0,0.0001976,2]
[359636246,1746203432964,-450.0,0.00019761,2]
[359636248,1746203432973,-450.0,0.00019761,2]
[359636250,1746203432984,-450.0,0.00019761,2]
[359636251,1746203432994,-450.0,0.00019761,2]
[359636252,1746203433005,-450.0,0.00019761,2]
[359636253,1746203433016,-450.0,0.00019761,2]
[359636254,1746203433027,-250.0,0.00019761,2]
[359636256,1746203433037,-450.0,0.00019761,2]
[359636258,1746203433047,-450.0,0.00019761,2]
[359636260,1746203433057,-450.0,0.00019761,2]
[359636262,1746203433067,-450.0,0.00019761,2]
[359636264,1746203433078,-450.0,0.00019761,2]
[359636266,1746203433089,-590.17,0.00019761,2]
[359636268,1746203433099,-450.0,0.00019761,2]
[359636270,1746203433110,-450.0,0.00019761,2]
[359636272,1746203433121,-450.0,0.00019761,2]
[359636274,1746203433131,-450.0,0.00019761,2]
[359636277,1746203433150,-450.0,0.00019761,2]
[359636279,1746203433165,-450.0,0.00019761,2]
[359636281,1746203433175,-596.02278588,0.00019761,2]
[359636283,1746203433187,-450.0,0.00019761,2]
[359636286,1746203433202,-450.0,0.00019761,2]
[359636288,1746203433216,-450.0,0.00019761,2]
[359636290,1746203433228,-576.79,0.00019761,2]
[359636292,1746203433239,-450.0,0.00019761,2]
[359636294,1746203433251,-450.0,0.00019761,2]
[359636296,1746203433263,-450.0,0.00019761,2]
[359636298,1746203433274,-450.0,0.00019761,2]
[359636300,1746203433287,-450.0,0.00019761,2]
[359636302,1746203433298,-450.0,0.00019761,2]
[359636304,1746203433309,-450.0,0.00019761,2]
[359636306,1746203433319,-450.0,0.00019761,2]
[359636308,1746203433330,-450.0,0.00019761,2]
[359636311,1746203433340,-450.0,0.00019761,2]
[359636313,1746203433351,-450.0,0.00019761,2]
[359636315,1746203433361,-543.9,0.00019761,2]
[359636317,1746203433372,-450.0,0.00019761,2]
[359636319,1746203433382,-450.0,0.00019761,2]
[359636321,1746203433392,-450.0,0.00019761,2]
[359636323,1746203433403,-450.0,0.00019761,2]
[359636325,1746203433414,-450.0,0.00019761,2]
[359636327,1746203433425,-450.0,0.00019761,2]
[359636329,1746203433434,-450.0,0.00019761,2]
[359636331,1746203433445,-450.0,0.00019761,2]
[359636333,1746203433456,-450.0,0.00019761,2]
[359636335,1746203433466,-450.0,0.00019761,2]
[359636337,1746203433477,-450.0,0.00019761,2]
[359636339,1746203433488,-892.53,0.00019761,2]
[359636341,1746203433498,-187.59652595,0.00019761,2]
[359636343,1746203433508,-450.0,0.00019761,2]
[359636345,1746203433519,-450.0,0.00019761,2]
[359636347,1746203433529,-450.0,0.00019761,2]
[359636350,1746203433540,-450.0,0.00019761,2]
[359636352,1746203433551,-450.0,0.00019761,2]
[359636354,1746203433562,-450.0,0.00019761,2]
[359636356,1746203433576,-450.0,0.00019761,2]
[359636358,1746203433586,-450.0,0.00019761,2]
[359636360,1746203433596,-450.0,0.00019761,2]
[359636362,1746203433606,-450.0,0.00019761,2]
[359636364,1746203433616,-450.0,0.00019761,2]
[359636367,1746203433626,-450.0,0.00019761,2]
[359636369,1746203433637,-450.0,0.00019761,2]
[359636371,1746203433648,-450.0,0.00019761,2]
[359636373,1746203433658,-450.0,0.00019761,2]
[359636375,1746203433668,-450.0,0.00019761,2]
[359636377,1746203433678,-450.0,0.00019761,2]
[359636379,1746203433688,-652.62,0.00019761,2]
[359636381,1746203433699,-450.0,0.00019761,2]
[359636383,1746203433709,-538.7954801,0.00019761,2]
[359636385,1746203433719,-450.0,0.00019761,2]
[359636387,1746203433729,-450.0,0.00019761,2]
[359636389,1746203433739,-450.0,0.00019761,2]
[359636391,1746203433748,-512.02,0.00019761,2]
[359636393,1746203433758,-450.0,0.00019761,2]
[359636395,1746203433768,-450.0,0.00019761,2]
[359636397,1746203433778,-450.0,0.00019761,2]
[359636399,1746203433789,-450.0,0.00019761,2]
[359636401,1746203433799,-450.0,0.00019761,2]
[359636403,1746203433809,-450.0,0.00019761,2]
[359636405,1746203433819,-450.0,0.00019761,2]
[359636407,1746203433829,-450.0,0.00019761,2]
[359636409,1746203433838,-1261.31,0.00019761,2]
[359636412,1746203433852,-450.0,0.00019761,2]
[359636414,1746203433863,-450.0,0.00019761,2]
[359636416,1746203433873,-450.0,0.00019761,2]
[359636419,1746203433885,-450.0,0.00019761,2]
[359636421,1746203433896,-450.0,0.00019761,2]
[359636423,1746203433906,-295.41290069,0.00019761,2]
[359636425,1746203433916,-450.0,0.00019761,2]
[359636427,1746203433926,-450.0,0.00019761,2]
[359636429,1746203433937,-450.0,0.00019761,2]
[359636431,1746203433950,-450.0,0.00019761,2]
[359636433,1746203433960,-994.56,0.00019761,2]
[359636435,1746203433971,-564.87,0.00019761,2]
[359636437,1746203433981,-593.53,0.00019761,2]
[359636439,1746203433991,-450.0,0.00019761,2]
[359636441,1746203434002,-450.0,0.00019761,2]
[359636443,1746203434011,-450.0,0.00019761,2]
[359636445,1746203434022,-797.07,0.00019761,2]
[359636447,1746203434032,-450.0,0.00019761,2]
[359636450,1746203434043,-450.0,0.00019761,2]
[359636452,1746203434054,-450.0,0.00019761,2]
[359636454,1746203434065,-450.0,0.00019761,2]
[359636456,1746203434075,-545.7,0.00019761,2]
[359636458,1746203434085,-450.0,0.00019761,2]
[359636460,1746203434095,-586.75,0.00019761,2]
[359636462,1746203434106,-450.0,0.00019761,2]
[359636464,1746203434116,-450.0,0.00019761,2]
[359636466,1746203434126,-450.0,0.00019761,2]
[359636468,1746203434136,-450.0,0.00019761,2]
[359636470,1746203434146,-623.62,0.00019761,2]
[359636513,1746203434157,-450.0,0.00019761,2]
[359636515,1746203434575,-469.45,0.00019761,2]
[359636517,1746203434584,-450.0,0.00019761,2]
[359636519,1746203434594,-450.0,0.00019761,2]
[359636521,1746203434603,-450.0,0.00019761,2]
[359636523,1746203434612,-450.0,0.00019761,2]
[359636525,1746203434622,-450.0,0.00019761,2]
[359636527,1746203434631,-343.03507731,0.00019761,2]
[359636528,1746203434641,-450.0,0.00019761,2]
[359636530,1746203434650,-546.67,0.00019761,2]
[359636532,1746203434659,-636.49,0.00019761,2]
[359636534,1746203434669,-450.0,0.00019761,2]
[359636536,1746203434679,-450.0,0.00019761,2]
[359636538,1746203434688,-450.0,0.00019761,2]
[359636540,1746203434698,-461.34320713,0.00019761,2]
[359636542,1746203434708,-450.0,0.00019761,2]
[359636544,1746203434717,-450.0,0.00019761,2]
[359636546,1746203434727,-450.0,0.00019761,2]
[359636548,1746203434736,-450.0,0.00019761,2]
[359636550,1746203434745,-574.69,0.00019761,2]
[359636552,1746203434754,-450.0,0.00019761,2]
[359636554,1746203434764,-634.63,0.00019761,2]
[359636556,1746203434773,-450.0,0.00019761,2]
[359636558,1746203434782,-450.0,0.00019761,2]
[359636559,1746203434791,-450.0,0.00019761,2]
[359636561,1746203434800,-450.0,0.00019761,2]
[359636563,1746203434809,-450.03,0.00019761,2]
[359636565,1746203434819,-450.0,0.00019761,2]
[359636567,1746203434828,-450.0,0.00019761,2]
[359636569,1746203434836,-530.73,0.00019761,2]
[359636571,1746203434846,-450.0,0.00019761,2]
[359636573,1746203434854,-450.0,0.00019761,2]
[359636575,1746203434863,-450.0,0.00019761,2]
[359636577,1746203434873,-450.0,0.00019761,2]
[359636578,1746203434883,-450.0,0.00019761,2]
[359636580,1746203434892,-450.0,0.00019761,2]
[359636582,1746203434902,-815.1,0.00019761,2]
[359636584,1746203434911,-472.46,0.00019761,2]
[359636586,1746203434920,-450.0,0.00019761,2]
[359636588,1746203434930,-450.0,0.00019761,2]
[359636590,1746203434939,-2687.65,0.00019761,2]
[359636592,1746203434949,-736.823139,0.00019761,2]
[359636594,1746203434958,-567.69,0.00019761,2]
[359636595,1746203434967,-450.0,0.00019761,2]
[359636597,1746203434977,-450.0,0.00019761,2]
[359636599,1746203434986,-450.0,0.00019761,2]
[359636600,1746203434996,-450.0,0.00019761,2]
[359636602,1746203435005,-450.0,0.00019761,2]
[359636604,1746203435014,-611.63,0.00019761,2]
[359636605,1746203435024,-450.0,0.00019761,2]
[359636607,1746203435033,-739.84,0.00019761,2]
[359636609,1746203435042,-450.0,0.00019761,2]
[359636611,1746203435052,-3978.91,0.00019761,2]
[359636612,1746203435061,-450.0,0.00019761,2]
[359636614,1746203435070,-450.0,0.00019761,2]
[359636616,1746203435079,-450.0,0.00019761,2]
[359636618,1746203435088,-450.0,0.00019761,2]
[359636620,1746203435098,-450.0,0.00019761,2]
[359636621,1746203435107,-542.93,0.00019761,2]
[359636623,1746203435116,-450.0,0.00019761,2]
[359636625,1746203435125,-450.0,0.00019761,2]
[359636627,1746203435135,-450.0,0.00019761,2]
[359636629,1746203435145,-670.71,0.00019761,2]
[359636631,1746203435154,-725.99,0.00019761,2]
[359636633,1746203435163,-2127.16,0.00019761,2]
[359636634,1746203435173,-549.22884713,0.00019761,2]
[359636636,1746203435182,-450.0,0.00019761,2]
[359636638,1746203435192,-1017.1,0.00019761,2]
[359636640,1746203435205,-2418.13,0.00019761,2]
[359636642,1746203435215,-714.89,0.00019761,2]
[359636643,1746203435225,-479.87,0.00019761,2]
[359636645,1746203435235,-789.24,0.00019761,2]
[359636647,1746203435246,-450.0,0.00019761,2]
[359636649,1746203435255,-477.86,0.00019761,2]
[359636651,1746203435265,-450.0,0.00019761,2]
[359636653,1746203435274,-450.0,0.00019761,2]
[359636655,1746203435285,-450.0,0.00019761,2]
[359636656,1746203435294,-450.0,0.00019761,2]
[359636658,1746203435304,-450.0,0.00019761,2]
[359636660,1746203435313,-450.0,0.00019761,2]
[359636662,1746203435323,-450.0,0.00019761,2]
[359636664,1746203435332,-397.69758956,0.00019761,2]
[359636666,1746203435342,-450.0,0.00019761,2]
[359636668,1746203435351,-451.99,0.00019761,2]
[359636669,1746203435360,-450.0,0.00019761,2]
[359636671,1746203435371,-450.0,0.00019761,2]
[359636673,1746203435380,-993.66,0.00019761,2]
[359636675,1746203435390,-1925.53,0.00019761,2]
[359636677,1746203435399,-269.99919044,0.00019761,2]
[359636679,1746203435408,-456.23,0.00019761,2]
[359636681,1746203435418,-450.0,0.00019761,2]
[359636683,1746203435427,-738.06,0.00019761,2]
[359636684,1746203435436,-1129.15,0.00019761,2]
[359636686,1746203435446,-951.78,0.00019761,2]
[359636688,1746203435456,-450.0,0.00019761,2]
[359636690,1746203435465,-1119.26,0.00019761,2]
[359636692,1746203435475,-450.0,0.00019761,2]
[359636694,1746203435484,-696.16,0.00019761,2]
[359636696,1746203435493,-1377.58,0.00019761,2]
[359636698,1746203435502,-450.0,0.00019761,2]
[359636699,1746203435512,-450.0,0.00019761,2]
[359636701,1746203435521,-584.74,0.00019761,2]
[359636703,1746203435531,-10621.51,0.00019761,2]
[359636705,1746203435540,-450.0,0.00019761,2]
[359636706,1746203435550,-5082.68,0.00019761,2]
[359636707,1746203435560,-450.0,0.00019761,2]
[359636708,1746203435569,-2395.67,0.00019761,2]
[359636709,1746203435579,-450.0,0.00019761,2]
[359636710,1746203435588,-450.0,0.00019761,2]
[359636711,1746203435597,-450.0,0.00019761,2]
[359636712,1746203435606,-450.0,0.00019761,2]
[359636713,1746203435616,-244.663322,0.00019761,2]
[359636714,1746203435625,-450.0,0.00019761,2]
[359636715,1746203435635,-766.32,0.00019761,2]
[359636717,1746203435645,-450.0,0.00019761,2]
[359636719,1746203435654,-5618.29,0.00019761,2]
[359636721,1746203435663,-500.81,0.00019761,2]
[359636723,1746203435673,-967.09,0.00019761,2]
[359636724,1746203435682,-450.0,0.00019761,2]
[359636725,1746203435691,-450.0,0.00019761,2]
[359636726,1746203435702,-450.0,0.00019761,2]
[359636727,1746203435712,-5130.24,0.00019761,2]
[359636729,1746203435720,-450.0,0.00019761,2]
[359636731,1746203435730,-450.0,0.00019761,2]
[359636732,1746203435739,-450.0,0.00019761,2]
[359636734,1746203435748,-450.0,0.00019761,2]
[359636736,1746203435757,-464.19,0.00019761,2]
[359636738,1746203435767,-450.0,0.00019761,2]
[359636740,1746203435776,-614.23,0.00019761,2]
[359636741,1746203435785,-974.3,0.00019761,2]
[359636743,1746203435794,-660.72,0.00019761,2]
[359636745,1746203435803,-450.0,0.00019761,2]
[359636747,1746203435813,-586.06,0.00019761,2]
[359636749,1746203435822,-450.0,0.00019761,2]
[359636750,1746203435831,-450.0,0.00019761,2]
[359636752,1746203435841,-527.26,0.00019761,2]
[359636754,1746203435850,-450.0,0.00019761,2]
[359636756,1746203435859,-450.0,0.00019761,2]
[359636758,1746203435868,-522.08,0.00019761,2]
[359636759,1746203435877,-450.0,0.00019761,2]
[359636761,1746203435888,-5292.83,0.00019761,2]
[359636763,1746203435898,-681.23,0.00019761,2]
[359636765,1746203435907,-450.0,0.00019761,2]
[359636767,1746203435916,-1243.77,0.00019761,2]
[359636769,1746203435925,-102480.87,0.00019761,2]
[359636770,1746203435935,-771.5,0.00019761,2]
[359636772,1746203435946,-364.06659005,0.00019761,2]
[359636774,1746203435956,-490.02075508,0.00019761,2]
[359636776,1746203435965,-450.0,0.00019761,2]
[359636778,1746203435974,-542.21,0.00019761,2]
[359636779,1746203435983,-1155.46,0.00019761,2]
[359636781,1746203435993,-450.0,0.00019761,2]
[359636783,1746203436002,-450.0,0.00019761,2]
[359636785,1746203436011,-1083.17,0.00019761,2]
[359636787,1746203436020,-5787.29,0.00019761,2]
[359636788,1746203436030,-988.25,0.00019761,2]
[359636790,1746203436039,-450.0,0.00019761,2]
[359636792,1746203436048,-569.03,0.00019761,2]
[359636794,1746203436057,-450.0,0.00019761,2]
[359636795,1746203436066,-568.95,0.00019761,2]
[359636797,1746203436076,-2009.58,0.00019761,2]
[359636798,1746203436086,-450.0,0.00019761,2]
[359636799,1746203436095,-88275.44606945,0.00019761,2]
[359636800,1746203436456,-2000.90767692,0.00019761,2]
[359636801,1746203436477,-24101.22937941,0.00019761,2]
[359636802,1746203438313,-463.93733564,0.00019761,2]
[359636803,1746203438326,-1376.6387324,0.00019761,2]
[359636804,1746203438341,-492.0912676,0.00019761,2]
[359636805,1746203438355,-1239.81145226,0.00019761,2]
[359636806,1746203438371,-627.50883914,0.00019761,2]
[359636807,1746203438455,-540.37743696,0.00019761,2]
[359636808,1746203438468,-725.71451969,0.00019761,2]
[359636809,1746203438481,-8118.87729053,0.00019761,2]
[359636810,1746203438492,-449.52331689,0.00019761,2]
[359636811,1746203438502,-450.0,0.00019761,2]
[359636812,1746203438511,-450.0,0.00019761,2]
[359636813,1746203438521,-478.6,0.00019761,2]
[359636814,1746203438532,-450.0,0.00019761,2]
[359636815,1746203438542,-648.9,0.00019761,2]
[359636816,1746203438553,-592.85,0.00019761,2]
[359636817,1746203438565,-17758.64,0.00019761,2]
[359636818,1746203438578,-451.47,0.00019761,2]
[359636819,1746203438589,-738.11,0.00019761,2]
[359636820,1746203438599,-450.0,0.00019761,2]
[359636821,1746203438608,-450.0,0.00019761,2]
[359636822,1746203438618,-450.0,0.00019761,2]
[359636823,1746203438628,-7374.82,0.00019761,2]
[359636824,1746203438638,-450.0,0.00019761,2]
[359636825,1746203438649,-300.0,0.00019761,2]
[359636826,1746203438659,-450.0,0.00019761,2]
[359636827,1746203438670,-618.12,0.00019761,2]
[359636828,1746203438681,-993.02,0.00019761,2]
[359636829,1746203438691,-1560.4,0.00019761,2]
[359636830,1746203438702,-499.78,0.00019761,2]
[359636831,1746203438712,-573.5,0.00019761,2]
[359636832,1746203438722,-450.0,0.00019761,2]
[359636834,1746203438731,-450.0,0.00019761,2]
[359636836,1746203438743,-591.81,0.00019761,2]
[359636838,1746203438754,-450.0,0.00019761,2]
[359636839,1746203438768,-450.0,0.00019761,2]
[359636840,1746203438778,-450.0,0.00019761,2]
[359636841,1746203438788,-450.0,0.00019761,2]
[359636842,1746203438799,-450.0,0.00019761,2]
[359636843,1746203438809,-450.0,0.00019761,2]
[359636844,1746203438819,-450.0,0.00019761,2]
[359636845,1746203438829,-503.93,0.00019761,2]
[359636846,1746203438840,-450.0,0.00019761,2]
[359636847,1746203438850,-450.0,0.00019761,2]
[359636848,1746203438862,-630.2,0.00019761,2]
[359636849,1746203438873,-630.38,0.00019761,2]
[359636850,1746203438884,-309.95473968,0.00019761,2]
[359636851,1746203438894,-580.3,0.00019761,2]
[359636852,1746203438905,-450.0,0.00019761,2]
[359636853,1746203438916,-450.0,0.00019761,2]
[359636854,1746203438926,-450.78,0.00019761,2]
[359636855,1746203438937,-1444.07,0.00019761,2]
[359636856,1746203438949,-450.0,0.00019761,2]
[359636857,1746203438959,-450.0,0.00019761,2]
[359636858,1746203438970,-672.91,0.00019761,2]
[359636859,1746203438981,-450.0,0.00019761,2]
[359636860,1746203438992,-450.0,0.00019761,2]
[359636861,1746203439003,-227.9320649,0.00019762,2]
[359636862,1746203439013,-450.0,0.00019762,2]
[359636863,1746203439024,-450.0,0.00019762,2]
[359636864,1746203439035,-450.0,0.00019762,2]
[359636865,1746203439046,-450.0,0.00019762,2]
[359636866,1746203439057,-450.0,0.00019762,2]
[359636867,1746203439069,-450.0,0.00019762,2]
[359636868,1746203439080,-450.0,0.00019762,2]
[359636869,1746203439091,-450.0,0.00019762,2]
[359636870,1746203439102,-450.0,0.00019762,2]
[359636871,1746203439113,-450.0,0.00019762,2]
[359636872,1746203439123,-520.56,0.00019762,2]
[359636873,1746203439134,-450.0,0.00019762,2]
[359636874,1746203439144,-450.0,0.00019762,2]
[359636875,1746203439155,-1189.37,0.00019762,2]
[359636876,1746203439167,-450.0,0.00019762,2]
[359636877,1746203439181,-471.44,0.00019762,2]
[359636878,1746203439191,-450.0,0.00019762,2]
[359636879,1746203439204,-450.0,0.00019762,2]
[359636880,1746203439219,-1287.26,0.00019762,2]
[359636881,1746203439230,-450.0,0.00019762,2]
[359636882,1746203439242,-450.0,0.00019762,2]
[359636883,1746203439253,-450.0,0.00019762,2]
[359636884,1746203439264,-469.43,0.00019762,2]
[359636885,1746203439275,-450.0,0.00019762,2]
[359636886,1746203439286,-381.02299155,0.00019762,2]
[359636887,1746203439297,-450.0,0.00019762,2]
[359636888,1746203439307,-578.0406957,0.00019762,2]
[359636889,1746203439318,-450.0,0.00019762,2]
[359636890,1746203439328,-585.26,0.00019762,2]
[359636891,1746203439338,-450.0,0.00019762,2]
[359636892,1746203439348,-450.0,0.00019762,2]
[359636893,1746203439358,-512.22,0.00019762,2]
[359636894,1746203439368,-450.0,0.00019762,2]
[359636895,1746203439379,-450.0,0.00019762,2]
[359636896,1746203439389,-450.0,0.00019762,2]
[359636897,1746203439399,-450.0,0.00019762,2]
[359636898,1746203439409,-1844.32,0.00019762,2]
[359636899,1746203439419,-873.62,0.00019762,2]
[359636900,1746203439429,-450.0,0.00019762,2]
[359636901,1746203439440,-514.09,0.00019762,2]
[359636902,1746203439451,-489.04,0.00019762,2]
[359636903,1746203439461,-450.0,0.00019762,2]
[359636904,1746203439471,-450.0,0.00019762,2]
[359636905,1746203439482,-988.54,0.00019762,2]
[359636906,1746203439492,-450.0,0.00019762,2]
[359636907,1746203439502,-450.0,0.00019762,2]
[359636908,1746203439513,-827.33,0.00019762,2]
[359636909,1746203439523,-450.0,0.00019762,2]
[359636910,1746203439534,-2717.77,0.00019762,2]
[359636911,1746203439543,-511.7,0.00019762,2]
[359636912,1746203439554,-450.0,0.00019762,2]
[359636913,1746203439565,-1190.61,0.00019762,2]
[359636914,1746203439575,-450.0,0.00019762,2]
[359636915,1746203439585,-1099.33,0.00019762,2]
[359636916,1746203439595,-636.13,0.00019762,2]
[359636917,1746203439606,-450.0,0.00019762,2]
[359636918,1746203439616,-450.0,0.00019762,2]
[359636919,1746203439627,-500.0,0.00019762,2]
[359636920,1746203439637,-500.0,0.00019762,2]
[359636921,1746203439647,-450.0,0.00019762,2]
[359636922,1746203439658,-511.30248728,0.00019762,2]
[359636923,1746203439669,-450.0,0.00019762,2]
[359636924,1746203439680,-2482.1,0.00019762,2]
[359636925,1746203439691,-450.0,0.00019762,2]
[359636926,1746203439702,-450.0,0.00019762,2]
[359636927,1746203439712,-450.0,0.00019762,2]
[359636928,1746203439723,-782.76,0.00019762,2]
[359636929,1746203439732,-450.0,0.00019762,2]
[359636930,1746203439743,-467.24,0.00019762,2]
[359636931,1746203439753,-450.0,0.00019762,2]
[359636932,1746203439763,-739.50688203,0.00019762,2]
[359636933,1746203439798,-87.68311797,0.00019762,2]
[359636934,1746203439807,-224.82167219,0.00019762,2]
[359636935,1746203439820,-225.17832781,0.00019762,2]
[359636936,1746203439830,-513.86,0.00019762,2]
[359636937,1746203439840,-620.97,0.00019762,2]
[359636938,1746203439850,-600.73,0.00019762,2]
[359636939,1746203439860,-82.65630126,0.00019762,2]
[359636943,1746203442508,-500.0,0.0001976,2]
[359636944,1746203442518,-166.69813893,0.0001976,2]
[359636945,1746203442528,-199.930361,0.0001976,2]
[359636946,1746203442538,-251.12747852,0.0001976,2]
[359636947,1746203442548,-500.0,0.0001976,2]
[359636948,1746203442557,-500.0,0.0001976,2]
[359636949,1746203442566,-362.87213785,0.0001976,2]
[359636950,1746203442576,-500.0,0.0001976,2]
[359636951,1746203442587,-500.0,0.0001976,2]
[359636952,1746203442596,-450.0,0.0001976,2]
[359636953,1746203442608,-2747.28,0.00019761,2]
[359636954,1746203442617,-695.74,0.00019761,2]
[359636955,1746203442627,-450.0,0.00019761,2]
[359636956,1746203442636,-450.0,0.00019761,2]
[359636957,1746203442645,-2575.66,0.00019761,2]
[359636958,1746203442656,-446.19369874,0.00019762,2]
[359636959,1746203442665,-617.03,0.00019762,2]
[359636960,1746203442675,-450.0,0.00019762,2]
[359636961,1746203442684,-450.0,0.00019762,2]
[359636962,1746203442694,-450.0,0.00019762,2]
[359636963,1746203442705,-450.0,0.00019762,2]
[359636964,1746203442714,-450.0,0.00019762,2]
[359636965,1746203442724,-707.9,0.00019762,2]
[359636966,1746203442733,-450.0,0.00019762,2]
[359636967,1746203442742,-450.0,0.00019762,2]
[359636968,1746203442752,-450.0,0.00019762,2]
[359636969,1746203442762,-1281.37,0.00019762,2]
[359636970,1746203442771,-450.0,0.00019762,2]
[359636971,1746203442781,-450.0,0.00019762,2]
[359636972,1746203442790,-450.0,0.00019762,2]
[359636973,1746203442799,-450.0,0.00019762,2]
[359636974,1746203442809,-450.0,0.00019762,2]
[359636975,1746203442818,-653.86,0.00019762,2]